bitfinex/quotes_BTCUSD_20220218
["timestamp","ask_amount","ask_price","bid_price","bid_amount"]
[1645145405154,0.19575342,40423.0,40420.0,0.22704379]
[1645145405752,0.061893,40421.0,40420.0,0.22704379]
[1645145405952,0.111293,40421.0,40420.0,0.22704379]
[1645145406752,0.161293,40421.0,40420.0,0.22704379]
[1645145407798,0.111293,40421.0,40420.0,0.22704379]
[1645145409298,0.26604047,40421.0,40420.0,0.22704379]
[1645145409498,0.58348747,40421.0,40420.0,0.22704379]
[1645145409702,0.63348747,40421.0,40420.0,0.22704379]
[1645145409899,0.41604047,40421.0,40420.0,0.22704379]
[1645145410098,0.26604047,40421.0,40420.0,0.22704379]
[1645145410299,0.31604047,40421.0,40420.0,0.22704379]
[1645145411145,0.31104047,40421.0,40420.0,0.22704379]
[1645145411744,0.26604047,40421.0,40420.0,0.22704379]
[1645145412444,0.26604047,40421.0,40420.0,0.1867539]
[1645145412644,0.26610327,40421.0,40420.0,0.1867539]
[1645145413246,0.1113558,40421.0,40420.0,0.1867539]
[1645145413448,0.0494628,40421.0,40420.0,0.1867539]
[1645145413646,6.28e-05,40421.0,40420.0,0.1867539]
[1645145414246,6.28e-05,40421.0,40420.0,0.44917199]
[1645145414497,0.0066628,40428.0,40427.0,0.28604444]
[1645145414700,0.01736203,40430.0,40421.0,0.00025241]
[1645145414906,0.01736203,40430.0,40422.0,0.00025241]
[1645145414907,0.00021545,40425.0,40422.0,0.00025241]
[1645145415196,0.00021545,40425.0,40420.0,0.1867539]
[1645145415596,0.061886,40424.0,40420.0,0.48319375]
[1645145415799,0.17378827,40429.0,40423.0,0.24136785]
[1645145415800,0.1911503,40429.0,40423.0,0.24136785]
[1645145416000,0.00021545,40425.0,40423.0,0.24136785]
[1645145416196,0.00021545,40425.0,40420.0,0.18700631]
[1645145416197,0.00021545,40425.0,40421.0,0.00025241]
[1645145416398,0.00021545,40425.0,40420.0,0.18700631]
[1645145416599,0.06209621,40425.0,40420.0,0.18700631]
[1645145416798,0.061878,40425.0,40420.0,0.18700631]
[1645145416996,0.00021545,40425.0,40420.0,0.18700631]
[1645145417197,0.00021545,40425.0,40424.0,0.20208706]
[1645145418156,0.48642592,40436.0,40424.0,0.20208706]
[1645145418157,0.31626562,40436.0,40425.0,0.25399876]
[1645145418349,0.002,40430.0,40427.0,0.03263797]
[1645145418554,0.53154161,40443.0,40434.0,0.18569659]
[1645145418751,0.5,40442.0,40441.0,0.25284162]
[1645145419147,0.2167,40443.0,40441.0,0.25284162]
[1645145419352,0.31484161,40447.0,40441.0,0.52068479]
[1645145419554,0.00020819,40444.0,40441.0,0.52068479]
[1645145419852,0.00020819,40444.0,40441.0,0.22755746]
[1645145420249,0.00020819,40444.0,40441.0,0.44652835]
[1645145420450,0.061841,40449.0,40441.0,1.75552835]
[1645145420451,0.002,40449.0,40441.0,1.75552835]
[1645145420651,0.00020819,40445.0,40441.0,1.75552835]
[1645145420949,0.00020819,40445.0,40441.0,0.44652835]
[1645145421350,0.00020819,40445.0,40441.0,0.22755746]
[1645145421552,0.26225333,40448.0,40441.0,0.22755746]
[1645145421751,0.26225333,40449.0,40441.0,0.22755746]
[1645145422005,0.00020819,40445.0,40441.0,0.22755746]
[1645145422805,0.26425333,40448.0,40441.0,0.22755746]
[1645145423009,0.26425333,40448.0,40439.0,0.0027]
[1645145423010,0.061854,40441.0,40439.0,0.0027]
[1645145423211,0.23538312,40440.0,40425.0,0.31494046]
[1645145423409,0.06186016,40439.0,40426.0,0.0027]
[1645145423607,0.06186016,40439.0,40426.0,0.00295241]
[1645145423608,0.01736203,40435.0,40426.0,0.00295241]
[1645145423806,0.01736203,40435.0,40428.0,0.31689344]
[1645145424010,0.01736203,40435.0,40430.0,0.24968107]
[1645145424411,0.00021544,40433.0,40430.0,0.24968107]
[1645145425310,0.01736203,40435.0,40430.0,0.24968107]
[1645145425509,0.00021544,40434.0,40430.0,0.24968107]
[1645145425954,0.00021544,40434.0,40427.0,0.00025241]
[1645145426161,0.00021544,40434.0,40426.0,0.00295241]
[1645145426162,0.1909378,40433.0,40426.0,0.00295241]
[1645145426357,0.1909378,40433.0,40426.0,0.0027]
[1645145426358,0.12863803,40432.0,40426.0,0.0027]
[1645145426553,0.0494,40432.0,40426.0,0.0027]
[1645145426753,0.0494,40432.0,40425.0,0.00025241]
[1645145426955,0.0494,40432.0,40421.0,0.18914515]
[1645145426956,0.11148344,40432.0,40421.0,0.18914515]
[1645145427155,0.01736203,40426.0,40422.0,0.00025241]
[1645145427354,0.06187895,40428.0,40422.0,0.00295241]
[1645145427554,0.06187895,40428.0,40423.0,0.00025241]
[1645145427761,0.05,40431.0,40423.0,0.00025241]
[1645145427956,0.00021529,40428.0,40423.0,0.00025241]
[1645145428354,0.00021529,40428.0,40427.0,0.2208415]
[1645145428955,0.2429378,40433.0,40427.0,0.2208415]
[1645145429156,0.00021528,40430.0,40428.0,0.29606521]
[1645145429396,0.00021528,40430.0,40427.0,0.2208415]
[1645145429998,0.2429378,40433.0,40428.0,0.31494046]
[1645145429999,0.002,40433.0,40428.0,0.31494046]
[1645145430200,6.099e-05,40434.0,40428.0,0.31494046]
[1645145430402,6.099e-05,40434.0,40432.0,0.1996258]
[1645145431400,0.09996099,40434.0,40432.0,0.48366243]
[1645145431800,9.9e-07,40434.0,40433.0,0.31494046]
[1645145431998,9.9e-07,40434.0,40432.0,0.1996258]
[1645145432397,9.9e-07,40434.0,40432.0,0.1994858]
[1645145432599,9.9e-07,40434.0,40429.0,0.37678553]
[1645145432800,9.9e-07,40434.0,40431.0,0.061849]
[1645145433004,0.00021527,40435.0,40429.0,0.43863146]
[1645145433453,0.00021527,40435.0,40429.0,0.31494046]
[1645145433651,0.14392161,40437.0,40426.0,0.31494046]
[1645145433848,0.14392161,40437.0,40430.0,0.061849]
[1645145434051,0.14392161,40437.0,40426.0,0.185555]
[1645145434052,0.00021527,40434.0,40426.0,0.185555]
[1645145434253,0.00021527,40434.0,40428.0,1.309]
[1645145434659,0.00021527,40434.0,40426.0,0.20633897]
[1645145434854,0.002,40440.0,40428.0,0.061853]
[1645145435053,0.002,40440.0,40434.0,0.2154507]
[1645145435557,0.6645724,40442.0,40434.0,0.2154507]
[1645145435755,0.40231907,40442.0,40434.0,0.2154507]
[1645145435953,0.51416907,40442.0,40434.0,0.2154507]
[1645145436353,0.00021526,40440.0,40433.0,0.320379]
[1645145436553,0.00021526,40440.0,40435.0,0.21637053]
[1645145437306,0.17635704,40442.0,40435.0,0.21637053]
[1645145437503,0.17635704,40442.0,40439.0,0.22221109]
[1645145437705,0.00021526,40440.0,40439.0,0.22221109]
[1645145437904,0.00021526,40440.0,40439.0,0.55762409]
[1645145438109,0.00021526,40440.0,40439.0,0.22221109]
[1645145438502,0.05,40446.0,40439.0,0.22221109]
[1645145438703,0.53391536,40448.0,40445.0,0.25816653]
[1645145438904,0.32961536,40448.0,40445.0,0.25816653]
[1645145439104,0.32961536,40448.0,40443.0,0.34162363]
[1645145439303,0.32961536,40448.0,40443.0,0.22023769]
[1645145439603,0.32961536,40448.0,40440.0,0.0027]
[1645145439604,0.26225333,40447.0,40440.0,0.0027]
[1645145439804,0.26225333,40446.0,40436.0,0.06184]
[1645145440303,0.002,40442.0,40437.0,0.23249428]
[1645145440504,0.002,40442.0,40438.0,1.309]
[1645145440753,0.002,40442.0,40438.0,1.8734882]
[1645145441151,0.00212428,40442.0,40438.0,1.8734882]
[1645145442150,0.002,40442.0,40438.0,1.8734882]
[1645145442350,0.00221542,40442.0,40438.0,1.8734882]
[1645145442551,0.00021542,40442.0,40438.0,1.8734882]
[1645145442752,0.00021542,40442.0,40438.0,1.52974842]
[1645145443154,0.00021542,40442.0,40440.0,1.309]
[1645145443357,6.411e-05,40447.0,40442.0,1.309]
[1645145443552,6.411e-05,40447.0,40443.0,1.3584]
[1645145443755,6.411e-05,40447.0,40444.0,0.31458052]
[1645145443951,6.411e-05,40447.0,40443.0,1.67643261]
[1645145444158,6.411e-05,40447.0,40446.0,1.309]
[1645145444159,4.11e-06,40447.0,40446.0,1.309]
[1645145444405,3.059e-05,40451.0,40449.0,1.309]
[1645145444606,3.059e-05,40451.0,40450.0,1.72645097]
[1645145445104,3.059e-05,40451.0,40450.0,1.99355628]
[1645145445303,3.059e-05,40451.0,40450.0,2.11715728]
[1645145445506,0.36731521,40466.0,40455.0,0.35]
[1645145445507,0.26183892,40463.0,40455.0,0.35]
[1645145445706,0.4494,40474.0,40455.0,0.35]
[1645145445707,0.31484161,40469.0,40462.0,1.309]
[1645145445909,0.31484161,40471.0,40464.0,1.309]
[1645145446105,0.20941424,40467.0,40466.0,1.309]
[1645145446305,0.20941424,40467.0,40466.0,0.0494]
[1645145446504,0.20941424,40467.0,40466.0,0.37175189]
[1645145446705,0.20941424,40468.0,40466.0,1.68075189]
[1645145446906,0.20941424,40469.0,40466.0,1.68075189]
[1645145447108,0.0002081,40469.0,40466.0,1.68075189]
[1645145447705,0.0002081,40469.0,40466.0,1.3584]
[1645145447909,0.0002081,40469.0,40454.0,0.187977]
[1645145447910,0.79319816,40465.0,40454.0,0.187977]
[1645145448160,0.17188042,40464.0,40454.0,0.0026]
[1645145448351,0.17188042,40464.0,40455.0,0.0494]
[1645145448352,0.38129466,40464.0,40455.0,0.0494]
[1645145448556,0.17188042,40464.0,40455.0,0.0494]
[1645145448753,0.17188042,40464.0,40462.0,0.21582066]
[1645145448952,1.0036124,40465.0,40462.0,0.21582066]
[1645145449153,0.05,40464.0,40462.0,0.21582066]
[1645145449353,0.84419816,40465.0,40462.0,0.21582066]
[1645145449653,0.79419816,40465.0,40462.0,0.21582066]
[1645145450056,0.79319816,40465.0,40462.0,0.21582066]
[1645145450253,0.79319816,40465.0,40461.0,0.0494]
[1645145450454,0.85501116,40465.0,40461.0,0.0494]
[1645145450653,0.85701116,40465.0,40461.0,0.0494]
[1645145450856,0.79539932,40465.0,40461.0,0.0494]
[1645145451655,0.79519816,40465.0,40461.0,0.0494]
[1645145451902,0.79339932,40465.0,40461.0,0.0494]
[1645145452102,0.79339932,40465.0,40460.0,0.52462993]
[1645145452303,0.79339932,40465.0,40460.0,0.24322495]
[1645145452903,6.247e-05,40463.0,40460.0,0.24322495]
[1645145454604,6.247e-05,40463.0,40455.0,0.123612]
[1645145454809,0.06187794,40463.0,40454.0,0.0026]
[1645145455406,6.247e-05,40463.0,40454.0,0.0026]
[1645145455659,0.00020164,40461.0,40458.0,0.24547748]
[1645145456452,0.00020164,40461.0,40458.0,1.61628448]
[1645145456651,6.247e-05,40463.0,40459.0,1.309]
[1645145456854,0.00020164,40462.0,40461.0,0.20528794]
[1645145457553,0.00026403,40462.0,40461.0,0.20528794]
[1645145457753,6.239e-05,40462.0,40461.0,0.20528794]
[1645145458353,6.239e-05,40462.0,40461.0,0.25528794]
[1645145458954,6.239e-05,40462.0,40461.0,0.05]
[1645145459155,6.239e-05,40462.0,40460.0,0.173593]
[1645145459400,6.239e-05,40462.0,40460.0,0.13168596]
[1645145460603,6.239e-05,40462.0,40460.0,1.44068596]
[1645145460801,6.239e-05,40462.0,40460.0,0.13168596]
[1645145461202,6.239e-05,40462.0,40460.0,1.44068596]
[1645145461410,6.239e-05,40462.0,40460.0,0.05]
[1645145461605,6.239e-05,40462.0,40454.0,0.0026]
[1645145461606,0.01736203,40461.0,40454.0,0.0026]
[1645145461804,0.0494,40460.0,40454.0,0.0026]
[1645145462003,0.0494,40460.0,40452.0,0.6]
[1645145462208,0.061831,40456.0,40452.0,0.6]
[1645145462405,0.1863026,40455.0,40452.0,0.6]
[1645145462604,0.24813512,40455.0,40452.0,0.6]
[1645145463004,0.1863026,40455.0,40452.0,0.6]
[1645145463854,0.30995412,40455.0,40452.0,0.6]
[1645145464256,0.35995412,40455.0,40449.0,0.19971497]
[1645145464457,0.35995412,40455.0,40448.0,0.0026]
[1645145464458,0.01736203,40453.0,40448.0,0.0026]
[1645145464658,0.0494,40452.0,40447.0,0.00014974]
[1645145464858,0.01736203,40449.0,40447.0,0.00014974]
[1645145465056,0.2070791,40448.0,40447.0,0.00014974]
[1645145465258,0.5704744,40448.0,40447.0,0.00014974]
[1645145465659,0.6704744,40448.0,40447.0,0.00014974]
[1645145466261,0.73218333,40448.0,40447.0,0.00014974]
[1645145466902,0.78318333,40448.0,40447.0,0.00014974]
[1645145467505,0.60534761,40448.0,40447.0,0.00014974]
[1645145468204,0.45447968,40448.0,40447.0,0.00014974]
[1645145468406,0.24740173,40449.0,40447.0,0.00014974]
[1645145468407,0.06184173,40449.0,40447.0,0.00014974]
[1645145468608,0.20490163,40450.0,40447.0,0.00014974]
[1645145468609,0.2047,40450.0,40447.0,0.00014974]
[1645145468805,0.2047,40450.0,40448.0,0.18952429]
[1645145469005,0.20490215,40450.0,40448.0,0.18952429]
[1645145469408,0.00020215,40450.0,40448.0,0.18952429]
[1645145469705,0.12370774,40454.0,40448.0,0.18952429]
[1645145469706,6.176e-05,40454.0,40449.0,0.397227]
[1645145469905,6.176e-05,40454.0,40450.0,1.309]
[1645145470105,6.176e-05,40454.0,40451.0,1.644413]
[1645145470307,6.176e-05,40454.0,40453.0,1.309]
[1645145470505,6.176e-05,40454.0,40453.0,1.644413]
[1645145470965,6.176e-05,40454.0,40452.0,0.2992088]
[1645145471569,6.176e-05,40454.0,40450.0,0.001]
[1645145472067,6.176e-05,40454.0,40449.0,0.31712263]
[1645145472567,6.176e-05,40454.0,40449.0,0.53276939]
[1645145472568,0.00026383,40454.0,40449.0,0.53276939]
[1645145472768,0.00020207,40454.0,40449.0,0.53276939]
[1645145472969,0.00020207,40454.0,40449.0,0.21564676]
[1645145473467,0.27992262,40456.0,40449.0,0.21564676]
[1645145473670,0.00020207,40454.0,40449.0,0.21564676]
[1645145474500,0.0618192,40456.0,40449.0,0.21564676]
[1645145474801,0.00020207,40454.0,40449.0,0.21564676]
[1645145475801,0.1118233,40455.0,40449.0,0.21564676]
[1645145476003,0.00020208,40454.0,40449.0,0.21564676]
[1645145476201,0.06202808,40454.0,40449.0,0.21564676]
[1645145476401,0.00020208,40454.0,40449.0,0.21564676]
[1645145477002,0.1118233,40455.0,40449.0,0.21564676]
[1645145477302,0.00020208,40454.0,40449.0,0.21564676]
[1645145477702,6.168e-05,40453.0,40449.0,0.21564676]
[1645145477904,0.06188595,40453.0,40449.0,0.21564676]
[1645145478552,0.06208803,40453.0,40449.0,0.21564676]
[1645145479359,0.06188595,40453.0,40449.0,0.21564676]
[1645145479856,0.06208803,40453.0,40449.0,0.21564676]
[1645145480455,0.07945006,40453.0,40449.0,0.21564676]
[1645145480656,0.12924798,40453.0,40449.0,0.21564676]
[1645145480855,0.11208803,40453.0,40449.0,0.21564676]
[1645145481658,0.061829,40452.0,40449.0,0.21564676]
[1645145482505,0.11201021,40453.0,40449.0,0.21564676]
[1645145483205,0.11188595,40453.0,40449.0,0.21564676]
[1645145483403,0.11208817,40453.0,40449.0,0.21564676]
[1645145484304,0.11188595,40453.0,40449.0,0.21564676]
[1645145484506,0.05006168,40453.0,40449.0,0.21564676]
[1645145484703,0.0002639,40453.0,40449.0,0.21564676]
[1645145485206,0.0002639,40453.0,40450.0,0.3133953]
[1645145485404,0.0002639,40453.0,40449.0,0.21564676]
[1645145485405,6.168e-05,40453.0,40449.0,0.21564676]
[1645145485857,0.0002639,40453.0,40449.0,0.21564676]
[1645145486059,3.9e-06,40453.0,40450.0,1.9578083]
[1645145486460,3.9e-06,40453.0,40450.0,2.15225427]
[1645145486658,0.36372116,40461.0,40452.0,1.644413]
[1645145486859,0.36731521,40463.0,40457.0,0.22636413]
[1645145486860,0.31372116,40463.0,40457.0,0.22636413]
[1645145487062,0.31372116,40463.0,40458.0,0.22198171]
[1645145487860,0.31372116,40464.0,40459.0,1.94832485]
[1645145488058,0.31372116,40464.0,40461.0,1.309]
[1645145488059,0.00012411,40463.0,40461.0,1.309]
[1645145488260,0.00012411,40463.0,40462.0,0.335413]
[1645145488860,0.00012411,40463.0,40461.0,0.335413]
[1645145489062,0.31372116,40464.0,40461.0,0.335413]
[1645145489259,0.31372116,40464.0,40461.0,0.0618]
[1645145489715,0.31372116,40464.0,40460.0,0.05]
[1645145489915,0.31372116,40464.0,40462.0,1.309]
[1645145490111,0.31372116,40464.0,40463.0,0.335413]
[1645145490312,0.31372116,40464.0,40462.0,0.05]
[1645145490512,1.10713483,40465.0,40462.0,0.05]
[1645145490712,1.10713483,40465.0,40460.0,0.111803]
[1645145490912,1.10713483,40465.0,40462.0,1.309]
[1645145491212,1.10713483,40465.0,40464.0,1.309]
[1645145491412,0.79319816,40465.0,40464.0,1.309]
[1645145491811,1.10691932,40465.0,40464.0,1.309]
[1645145492011,0.79319816,40465.0,40464.0,1.309]
[1645145492214,0.79319816,40465.0,40464.0,1.95549318]
[1645145492413,0.79319816,40465.0,40464.0,1.62008018]
[1645145493456,0.79319816,40465.0,40464.0,1.95549318]
[1645145493658,0.79319816,40465.0,40464.0,1.62008018]
[1645145493856,0.79319816,40465.0,40464.0,1.95549318]
[1645145494055,0.79319816,40465.0,40464.0,1.62008018]
[1645145494258,0.79319816,40465.0,40464.0,1.359]
[1645145494457,0.79319816,40465.0,40463.0,1.370797]
[1645145494861,0.79319816,40465.0,40463.0,1.3705864]
[1645145495261,0.79319816,40465.0,40463.0,1.62438793]
[1645145495459,0.79319816,40465.0,40464.0,1.309]
[1645145495659,0.79319816,40465.0,40464.0,1.359]
[1645145497110,0.79319816,40465.0,40464.0,1.694413]
[1645145497913,0.79319816,40465.0,40464.0,1.359]
[1645145498712,1.10691932,40465.0,40464.0,1.359]
[1645145499315,1.10691932,40465.0,40464.0,0.05]
[1645145499316,0.79319816,40465.0,40464.0,0.05]
[1645145499514,1.10691932,40465.0,40463.0,0.0615864]
[1645145500970,1.10691932,40465.0,40462.0,0.111798]
[1645145501169,1.10691932,40465.0,40462.0,0.05]
[1645145501469,0.31372116,40464.0,40460.0,0.05]
[1645145502071,1.10791932,40465.0,40460.0,0.05]
[1645145502270,1.10791932,40465.0,40460.0,0.17361]
[1645145502571,0.00021552,40464.0,40460.0,0.111804]
[1645145502777,0.00021552,40464.0,40462.0,1.359]
[1645145502971,0.00021552,40464.0,40463.0,1.644413]
[1645145503170,0.00021552,40464.0,40463.0,1.309]
[1645145503370,1.10691932,40465.0,40463.0,1.309]
[1645145503571,1.10691932,40465.0,40462.0,0.061799]
[1645145503770,1.10691932,40465.0,40461.0,0.335413]
[1645145503969,1.10691932,40465.0,40460.0,0.05]
[1645145504606,1.10691932,40465.0,40462.0,0.335413]
[1645145504806,1.10713483,40465.0,40462.0,1.706217]
[1645145505011,1.10713483,40465.0,40462.0,1.309]
[1645145505206,1.10713483,40465.0,40462.0,1.359]
[1645145505411,1.10713483,40465.0,40462.0,0.05]
[1645145505608,0.31372116,40464.0,40460.0,0.05]
[1645145507007,0.31372116,40464.0,40460.0,1.359]
[1645145507209,0.31393668,40464.0,40461.0,0.061807]
[1645145507808,0.31493668,40464.0,40461.0,0.061807]
[1645145508258,0.31472116,40464.0,40461.0,0.061807]
[1645145508856,0.31472116,40464.0,40462.0,0.111804]
[1645145509056,0.31372116,40464.0,40462.0,0.111804]
[1645145509257,1.10713483,40465.0,40462.0,0.05]
[1645145509457,1.10691932,40465.0,40462.0,0.05]
[1645145509658,0.31372116,40464.0,40460.0,0.05]
[1645145509860,0.31472116,40464.0,40460.0,0.05]
[1645145510059,0.31472116,40464.0,40461.0,0.061807]
[1645145510960,0.31372116,40464.0,40461.0,0.061807]
[1645145511160,0.31372116,40464.0,40463.0,1.644413]
[1645145511361,1.10713483,40465.0,40460.0,0.05]
[1645145511562,1.10713483,40465.0,40460.0,0.173603]
[1645145511762,0.31472116,40464.0,40460.0,0.05]
[1645145512009,0.31372116,40463.0,40461.0,0.335413]
[1645145512209,0.31372116,40463.0,40460.0,0.05]
[1645145512614,0.31372116,40463.0,40458.0,0.05]
[1645145512815,0.31372116,40459.0,40458.0,0.05]
[1645145513013,0.68414271,40460.0,40453.0,0.0026]
[1645145513316,0.061825,40454.0,40448.0,0.335413]
[1645145513513,0.061825,40454.0,40448.0,0.65880495]
[1645145513714,0.061825,40454.0,40453.0,0.59592519]
[1645145514713,0.061825,40454.0,40453.0,0.64592519]
[1645145515757,0.061825,40454.0,40453.0,0.59592519]
[1645145515961,0.37631543,40456.0,40454.0,0.335413]
[1645145516159,0.37131543,40456.0,40454.0,0.335413]
[1645145516358,0.06203753,40456.0,40454.0,0.335413]
[1645145516561,0.06203753,40456.0,40454.0,0.8640575]
[1645145516562,5.53e-06,40456.0,40454.0,0.8640575]
[1645145516761,0.001,40459.0,40454.0,0.8640575]
[1645145516762,5.53e-06,40459.0,40456.0,0.335473]
[1645145516957,0.79319816,40465.0,40458.0,1.644413]
[1645145517162,0.79319816,40465.0,40461.0,0.335413]
[1645145517359,0.79319816,40465.0,40464.0,0.22064144]
[1645145517557,0.79319816,40465.0,40464.0,0.60545444]
[1645145518158,0.79319816,40465.0,40464.0,0.65545444]
[1645145518358,0.79319816,40465.0,40464.0,0.93413693]
[1645145519808,0.79319816,40465.0,40464.0,1.03513693]
[1645145520412,0.79319816,40465.0,40464.0,1.08513693]
[1645145521011,0.79319816,40465.0,40464.0,1.08413693]
[1645145521812,0.79319816,40465.0,40464.0,1.08513693]
[1645145522812,0.79319816,40465.0,40464.0,0.66449549]
[1645145523015,0.79319816,40465.0,40463.0,0.18538859]
[1645145523264,0.79319816,40465.0,40455.0,0.05]
[1645145523463,0.27914183,40462.0,40452.0,0.1156]
[1645145523664,0.2617798,40459.0,40452.0,0.0028]
[1645145523866,0.2617798,40459.0,40447.0,0.00014974]
[1645145523867,0.3236048,40458.0,40450.0,0.20866083]
[1645145524262,0.3236048,40458.0,40457.0,0.335413]
[1645145524662,0.2617798,40458.0,40457.0,0.335413]
[1645145524860,0.26168459,40458.0,40457.0,0.335413]
[1645145525059,1.96126639,40458.0,40457.0,0.335413]
[1645145525261,1.96126639,40458.0,40457.0,0.385413]
[1645145525662,1.6995818,40458.0,40457.0,0.44722488]
[1645145526761,1.6995818,40458.0,40457.0,0.39722488]
[1645145527007,1.6995818,40458.0,40457.0,0.335413]
[1645145527708,2.01360331,40458.0,40456.0,0.12368959]
[1645145527908,2.01460331,40458.0,40457.0,0.335413]
[1645145528912,1.7005818,40458.0,40457.0,0.335413]
[1645145529108,1.6995818,40458.0,40457.0,0.335413]
[1645145529908,2.01660331,40458.0,40457.0,0.335413]
[1645145530107,1.7025818,40458.0,40457.0,0.335413]
[1645145530967,0.003,40458.0,40457.0,0.335413]
[1645145531172,0.33138354,40459.0,40457.0,0.50903043]
[1645145531369,0.01736203,40459.0,40457.0,0.45699947]
[1645145532967,0.33138354,40459.0,40457.0,0.45699947]
[1645145533168,0.01736203,40459.0,40457.0,0.45699947]
[1645145533369,0.33138354,40459.0,40457.0,0.45699947]
[1645145533571,0.33138354,40459.0,40457.0,0.335413]
[1645145533572,0.31402151,40459.0,40457.0,0.335413]
[1645145533769,0.31402151,40459.0,40457.0,0.39722543]
[1645145534174,0.31402151,40458.0,40457.0,0.39722543]
[1645145534610,0.31410133,40459.0,40457.0,0.39722543]
[1645145535012,0.01736203,40462.0,40457.0,0.335413]
[1645145535013,0.31410133,40458.0,40457.0,0.335413]
[1645145535810,0.31406866,40458.0,40457.0,0.335413]
[1645145536011,0.31406877,40458.0,40457.0,0.3972234]
[1645145536211,0.31406877,40459.0,40457.0,0.3972234]
[1645145536410,0.31406877,40458.0,40457.0,0.3972234]
[1645145536611,0.31406877,40458.0,40456.0,6e-05]
[1645145536815,0.00021568,40460.0,40456.0,6e-05]
[1645145536816,0.314062,40457.0,40456.0,6e-05]
[1645145537011,0.314062,40457.0,40456.0,0.335473]
[1645145538014,0.061819,40458.0,40456.0,0.335473]
[1645145538262,0.061819,40458.0,40457.0,0.335413]
[1645145538463,0.061819,40458.0,40456.0,6e-05]
[1645145538464,0.44553946,40458.0,40456.0,6e-05]
[1645145538663,0.36635843,40457.0,40456.0,6e-05]
[1645145539861,0.36835843,40457.0,40456.0,6e-05]
[1645145540662,0.49201443,40457.0,40456.0,6e-05]
[1645145541164,0.49001443,40457.0,40456.0,6e-05]
[1645145542017,0.49201443,40457.0,40456.0,6e-05]
[1645145543212,0.49001443,40457.0,40456.0,6e-05]
[1645145544218,0.21346097,40457.0,40456.0,6e-05]
[1645145545516,0.21146097,40457.0,40456.0,6e-05]
[1645145545960,0.49311616,40457.0,40456.0,6e-05]
[1645145546164,0.26380505,40457.0,40456.0,6e-05]
[1645145547165,0.26080505,40457.0,40456.0,6e-05]
[1645145547967,0.26280505,40457.0,40456.0,6e-05]
[1645145548164,0.31280505,40457.0,40456.0,6e-05]
[1645145548365,0.46280505,40457.0,40456.0,6e-05]
[1645145548565,0.57560505,40457.0,40456.0,6e-05]
[1645145549267,0.57360505,40457.0,40456.0,6e-05]
[1645145549907,0.57560505,40457.0,40456.0,6e-05]
[1645145550309,0.061846,40454.0,40447.0,0.00014974]
[1645145550510,0.43355571,40448.0,40447.0,0.00014974]
[1645145550810,0.16736203,40448.0,40447.0,0.00014974]
[1645145551011,0.48310811,40448.0,40447.0,0.00014974]
[1645145551209,0.16736203,40448.0,40447.0,0.00014974]
[1645145551610,0.2292093,40448.0,40447.0,0.00014974]
[1645145551812,0.2910573,40448.0,40447.0,0.00014974]
[1645145552010,0.1930573,40448.0,40447.0,0.00014974]
[1645145552509,0.1430573,40448.0,40447.0,0.00014974]
[1645145552710,0.45880338,40448.0,40447.0,0.00014974]
[1645145552911,0.65820338,40448.0,40447.0,0.00014974]
[1645145553167,0.65620338,40448.0,40447.0,0.00014974]
[1645145553861,0.65820338,40448.0,40447.0,0.00014974]
[1645145554061,0.97198426,40448.0,40447.0,0.00014974]
[1645145554462,0.60623818,40448.0,40447.0,0.00014974]
[1645145554663,0.44439091,40448.0,40447.0,0.00014974]
[1645145554872,0.13061003,40448.0,40447.0,0.00014974]
[1645145555163,0.12861003,40448.0,40447.0,0.00014974]
[1645145555964,0.13061003,40448.0,40447.0,0.00014974]
[1645145556167,0.13027357,40448.0,40447.0,0.00014974]
[1645145556367,0.113248,40448.0,40447.0,0.00014974]
[1645145556567,0.13027357,40448.0,40447.0,0.00014974]
[1645145557210,0.12827357,40448.0,40447.0,0.00014974]
[1645145557715,0.07887357,40448.0,40447.0,0.00014974]
[1645145557913,0.07893633,40448.0,40447.0,0.00014974]
[1645145558714,0.07893633,40448.0,40447.0,0.32486444]
[1645145559317,6.276e-05,40448.0,40447.0,0.00014974]
[1645145559520,6.276e-05,40448.0,40447.0,0.33556274]
[1645145559820,2.76e-06,40448.0,40447.0,0.53496274]
[1645145560019,0.0097,40452.0,40447.0,0.53496274]
[1645145560020,0.0097,40452.0,40449.0,0.335413]
[1645145560415,0.0097,40452.0,40450.0,0.27171686]
[1645145560679,0.0097,40452.0,40451.0,0.335413]
[1645145560875,0.21746,40455.0,40452.0,0.2313427]
[1645145561173,0.21746,40455.0,40454.0,0.335413]
[1645145561373,6e-05,40455.0,40454.0,0.335413]
[1645145561575,6e-05,40455.0,40453.0,0.335413]
[1645145561973,6e-05,40455.0,40453.0,0.39723]
[1645145562273,6e-05,40455.0,40453.0,0.335413]
[1645145562473,6e-05,40455.0,40452.0,0.46388735]
[1645145562678,6e-05,40455.0,40453.0,0.24541299]
[1645145565911,6e-05,40455.0,40453.0,0.36904439]
[1645145566112,6e-05,40455.0,40454.0,0.06181518]
[1645145566310,6e-05,40455.0,40454.0,0.39722818]
[1645145567116,6e-05,40455.0,40454.0,0.44722818]
[1645145567312,6e-05,40455.0,40454.0,0.39722818]
[1645145567513,6e-05,40455.0,40454.0,0.335413]
[1645145567711,6e-05,40455.0,40454.0,0.385413]
[1645145568759,6e-05,40455.0,40454.0,0.44723436]
[1645145568960,6e-05,40455.0,40454.0,0.49663436]
[1645145571909,6e-05,40455.0,40454.0,0.54663436]
[1645145572609,0.00012046,40455.0,40454.0,0.54663436]
[1645145572811,0.00012046,40455.0,40454.0,0.44663436]
[1645145573016,0.00012046,40455.0,40454.0,0.11122136]
[1645145573214,0.00012046,40455.0,40452.0,0.2313427]
[1645145573215,0.01714603,40455.0,40452.0,0.2313427]
[1645145573413,0.01714603,40455.0,40449.0,0.12364315]
[1645145573414,0.07885457,40454.0,40449.0,0.12364315]
[1645145573814,0.07885457,40454.0,40449.0,0.39147154]
[1645145574213,0.07885457,40454.0,40449.0,0.12364315]
[1645145574413,0.061829,40454.0,40451.0,0.24096729]
[1645145574614,0.01702557,40452.0,40451.0,0.3027937]
[1645145574813,0.07885657,40452.0,40451.0,0.24096729]
[1645145575014,0.07885657,40452.0,40448.0,0.00018552]
[1645145575213,0.07885657,40452.0,40449.0,0.335118]
[1645145575415,0.07885657,40452.0,40448.0,0.00018552]
[1645145577363,0.08085657,40452.0,40448.0,0.00018552]
[1645145577564,0.16888257,40449.0,40448.0,0.00018552]
[1645145577764,0.07885957,40449.0,40448.0,0.00018552]
[1645145578170,0.08865957,40449.0,40448.0,0.00018552]
[1645145578564,0.17868257,40449.0,40448.0,0.00018552]
[1645145578965,0.08865957,40449.0,40448.0,0.00018552]
[1645145579414,0.40438756,40449.0,40448.0,0.00018552]